Cogmind - Beta 13 @@@ ROGUE MODE // 2024.05.12 @ 16:22:31 Player: mrjoebobfred Result: Destroyed by Y-45 Defender with Heavy Assault Rifle Performance ------------- Evolutions (1) 500 Regions Visited (3) 600 Robots Destroyed (76) 380 Value Destroyed (1946) 1946 Prototype IDs (8) 160 Alien Tech Used (0) 0 Bonus (143) 143 TOTAL SCORE: 3729 Bonus ------- High Alert Combat Kills 143 Cogmind --------- Core Integrity 0/400 Matter 300/300 Energy 274/280 System Corruption 0% Temperature Cool (3) Movement Treading (160) Location -9/Materials Parts ------- > --- POWER (1) -------- Cooled Ion Engine > --- PROPULSION (3) --- Light Treads Light Treads Light Treads > --- UTILITY (3) ------ Medium Storage Unit Signal Interpreter Hacking Suite > --- WEAPON (2) ------- Advanced Beam Rifle EMP Blaster > --- INVENTORY (10) --- VTOL Module Faulty Improved Flight Unit Advanced Weight Redist. System Structural Scanner Sensor Array Utility Shielding Advanced Beam Rifle Peak State ------------ > --- POWER ------------ Cooled Ion Engine > --- PROPULSION ------- Light Treads Light Treads Light Treads > --- UTILITY ---------- Advanced Weight Redist. System Signal Interpreter Hacking Suite > --- WEAPON ----------- Advanced Beam Rifle Advanced Beam Rifle > --- INVENTORY -------- VTOL Module Small Storage Unit Structural Scanner Sensor Array Utility Shielding [Rating: 21] Favorites ----------- Power Cooled Ion Engine Engine Cooled Ion Engine Power Core Light Nuclear Core Propulsion Light Treads Treads Light Treads Flight Unit Flight Unit Utility High-capacity Storage Unit Device Structural Scanner Storage High-capacity Storage Unit Processor Signal Interpreter Hackware Hacking Suite Protection Utility Shielding Weapon Improved EM Shotgun Energy Gun Improved EM Shotgun Energy Cannon Particle Cannon Ballistic Gun Heavy Assault Rifle Ballistic Cannon Bore Cannon Launcher Rocket Launcher Build | -11 -10 -10 -9 ------- Run | Yrd Mat Min Mat Slots Evolved 2 | . . . 2 Power . | . . . . Propulsion 1 | . . . 1 Utility 1 | . . . 1 Weapon . | . . . . Parts Attached 76 | 8 11 5 52 Power 8 | 1 2 . 5 Engine 6 | 1 2 . 3 Core 2 | . . . 2 Reactor . | . . . . Propulsion 27 | 4 2 4 17 Treads 20 | 4 2 2 12 Leg . | . . . . Wheel . | . . . . Hover . | . . . . Flight 7 | . . 2 5 Utility 19 | 1 3 . 15 Device 4 | . 1 . 3 Storage 5 | 1 1 . 3 Processor 1 | . . . 1 Hackware 1 | . . . 1 Protection 8 | . 1 . 7 Artifact . | . . . . Weapon 22 | 2 4 1 15 Energy Gun 11 | 1 2 . 8 Energy Cannon 1 | . 1 . . Ballistic Gun 2 | 1 . . 1 Ballistic Cannon 5 | . 1 1 3 Launcher 3 | . . . 3 Special Weapon . | . . . . Impact Weapon . | . . . . Slashing Weapon . | . . . . Piercing Weapon . | . . . . Special Melee Weapon . | . . . . Unidentified Prototypes 4 | . 2 . 2 Parts Lost 15 | . . . 15 Power 2 | . . . 2 Propulsion 8 | . . . 8 Utility 1 | . . . 1 Weapon 4 | . . . 4 Highest Loss Streak 3 | . . . 3 To Critical Strikes . | . . . . Average Slot Usage (%) 90 | . 99 100 82 Engine 8 | . 14 14 3 Core 2 | . . . 5 Treads 24 | . 28 27 22 Flight 2 | . . . 3 Device 8 | . 13 . 9 Storage 11 | . 14 14 8 Processor 1 | . . . 2 Protection 7 | . . 14 7 Energy Gun 12 | . 13 24 7 Energy Cannon 1 | . 6 . . Ballistic Gun 2 | . 5 . 3 Ballistic Cannon 4 | . 3 3 5 Naked Turns . | . . . . Heaviest Build 61 | 14 56 61 61 Greatest Support 69 | 40 40 40 69 Greatest Overweight (x) 7 | 3 1 1 7 Average Overweight (x) . | . . 1 . Largest Inventory Capacity 20 | 8 20 20 20 Average Capacity 15 | 7 15 20 13 Most Carried 14 | 1 7 10 14 Average Carried 7 | . 3 8 8 Final Capacity 20 | 8 20 20 10 Final Carried 10 | . 7 10 7 Class Distribution -------------------- 77% | Mutant 19% | Scavenger-Mutant Dominant Class ---------------- Mutant | -10/Materials Mutant | -10/Mines Mutant | -9/Materials Resources | -11 -10 -10 -9 ----------- Run | Yrd Mat Min Mat Matter Collected 1804 | 289 191 60 1264 Remotely . | . . . . Salvage Created 2418 | 95 655 49 1619 Parts 152 | 2 36 7 107 Haulers Intercepted 6 | . 2 . 4 Recyclers Shooed 1 | . . . 1 Parts Field Recycled . | . . . . Retrieved Matter . | . . . . Parts Self-Destructed . | . . . . Prevented . | . . . . Kills | -11 -10 -10 -9 ------- Run | Yrd Mat Min Mat Combat Hostiles Destroyed 53 | . 12 5 36 Melee 1 | . . . 1 Guns 25 | . 2 5 18 Cannons 20 | . 7 . 13 AOE 7 | . 3 . 4 Classes Destroyed 12 | 1 4 2 5 Worker 4 | . . . 4 Builder 2 | . 1 . 1 Hauler 6 | . 2 . 4 Recycler 2 | 1 . . 1 Mechanic 1 | . . . 1 Operator 1 | . . . 1 Watcher 7 | . 3 . 4 Swarmer 13 | . . 3 10 Grunt 28 | . 12 . 16 Brawler 1 | . . . 1 Sentry 9 | . . . 9 Demolisher 2 | . . 2 . Best Kill Streak 6 | 1 4 3 6 Combat Bots Only 4 | . 4 3 4 Max Kills in Single Turn 3 | 1 3 1 3 Gunslinging . | . . . . Exploded 2 | . 2 . 2 Melee 1 | . . . 1 Uniques/NPCs Destroyed . | . . . . Combat | -11 -10 -10 -9 -------- Run | Yrd Mat Min Mat Hostile Shots Fired 298 | . 36 14 248 Missed 80 | . 10 2 68 Damage Taken 2652 | . 411 136 2105 Core 521 | . 79 30 412 Absorbed by Shields . | . . . . Redirected to Shielding 4 | . . . 4 Regen/Repaired (Parts) 83 | . . . 83 Core Remaining (%) 78 | 100 . 56 . Volleys Fired 211 | 3 40 7 161 Largest 2 | 1 2 2 2 Hottest 122 | 20 103 90 122 Shots Fired 353 | 3 80 14 256 Gun 224 | 3 53 14 154 Cannon 123 | . 27 . 96 Launcher 6 | . . . 6 Special . | . . . . Kinetic 176 | 3 30 . 143 Thermal 125 | . 26 . 99 Explosive 2 | . . . 2 Electromagnetic 50 | . 24 14 12 Robot Hit Streak 17 | 1 17 3 7 Robot Miss Streak 12 | 1 4 3 12 Penetration Max 1 | . . . 1 Secondary Targets . | . . . . Shots Hit Robots 196 | 2 55 9 130 Core Hits 94 | 1 26 5 62 Critical Kills 10 | . . . 10 Critical Parts Destroyed 16 | . . . 16 Critical Strikes 36 | . . . 36 Burn 10 | . . . 10 Destroy 26 | . . . 26 Melee Attacks . | . . . . Impact . | . . . . Slashing . | . . . . Piercing . | . . . . Sneak Attacks . | . . . . Combat Hostiles . | . . . . Follow-up Attacks . | . . . . Damage Inflicted 4074 | 27 1124 96 2827 Guns 2150 | 27 591 96 1436 Cannons 1315 | . 387 . 928 Explosions 559 | . 146 . 413 Melee . | . . . . Ramming 50 | . . . 50 Kinetic 1496 | 27 231 . 1238 Thermal 1551 | . 533 . 1018 Explosive 244 | . . . 244 Electromagnetic 733 | . 360 96 277 Impact . | . . . . Slashing . | . . . . Piercing . | . . . . Highest Corruption . | . . . . Average Corruption . | . . . . Corruption Purged . | . . . . Corruption Blocked . | . . . . Overload Shots . | . . . . Overflow Damage 51 | . . . 51 Projectiles 50 | . . . 50 Explosions 1 | . . . 1 Melee . | . . . . Knockbacks 7 | . . . 7 Impact . | . . . . Kinetic 7 | . . . 7 Secondary . | . . . . Self-Inflicted Damage 61 | . 38 . 23 Shots 3 | . 1 . 2 Rammed 15 | . . . 15 Targets Rammed 16 | . . . 16 Kicked . | . . . . Crushed 1 | . . . 1 Highest Temperature 473 | . 213 96 473 Average Temperature 70 | . 62 37 73 Received Heat Transfer 1101 | . 228 . 873 Effects 1 | . . . 1 Energy Bleed 1 | . . . 1 Siege Activations . | . . . . Robots Corrupted 1 | . 1 . . Combat Hostiles . | . . . . Parts Fried 3 | . 2 . 1 Impact Corruptions . | . . . . Robots Melted . | . . . . Combat Hostiles . | . . . . Parts Melted 9 | . 4 . 5 Heat Transferred 3924 | . 853 . 3071 Parts Sabotaged . | . . . . Parts Stolen . | . . . . Parts Stripped . | . . . . Power Chain Reactions 2 | . 2 . . Alert | -11 -10 -10 -9 ------- Run | Yrd Mat Min Mat Peak Influence 810 | 5 228 138 810 Initial 58 | . 3 58 . Average 181 | 3 115 36 270 Maximum Alert Level 3 | . 1 . 3 Low Security (%) 72 | 100 83 100 57 Level 1 14 | . 16 . 19 Level 2 9 | . . . 18 Level 3 3 | . . . 5 Level 4 . | . . . . Level 5 . | . . . . High Security . | . . . . Max Security . | . . . . Squads Dispatched 10 | . 4 . 6 Investigation 6 | . 4 . 2 Extermination . | . . . . Reinforcement 3 | . . . 3 Assault 1 | . . . 1 Garrison . | . . . . Intercept . | . . . . Searches Triggered . | . . . . Construction Impeded 2 | . . . 2 Haulers Reinforced . | . . . . Active Scanning Responses . | . . . . Cargo Convoy Interrupts . | . . . . Stealth | -11 -10 -10 -9 --------- Run | Yrd Mat Min Mat Distress Signals 5 | . 1 . 4 Communications Jammed . | . . . . Distress Signals . | . . . . Times Spotted 94 | . 17 7 70 Peak Tracking Total 8 | . 3 3 8 Tactical Retreats 11 | . 1 1 9 Traps | -11 -10 -10 -9 ------- Run | Yrd Mat Min Mat Traps Triggered 3 | . . . 3 Indirectly . | . . . . Trap Hack Attempts . | . . . . Triggered . | . . . . Disarmed . | . . . . Reprogrammed . | . . . . Reused . | . . . . Traps Extracted . | . . . . Installed . | . . . . Triggered . | . . . . Machines | -11 -10 -10 -9 ---------- Run | Yrd Mat Min Mat Machines Disabled 6 | . 1 . 5 Max in Single Turn 1 | . 1 . 1 Machines Repaired . | . . . . Machines Dismantled . | . . . . Machines Sabotaged . | . . . . Overloaded Fab Kills . | . . . . Hacking | -11 -10 -10 -9 --------- Run | Yrd Mat Min Mat Machines Accessed 21 | . 9 . 12 Terminals 15 | . 7 . 8 Fabricators . | . . . . Repair Stations 1 | . . . 1 Recycling Units 4 | . 2 . 2 Scanalyzers 1 | . . . 1 Garrison Access . | . . . . Total Hacks 59 | . 30 . 29 Successful 33 | . 13 . 20 Failed 26 | . 17 . 9 Catastrophic . | . . . . Database Lockouts . | . . . . Manual 32 | . 16 . 16 Terminals 44 | . 22 . 22 Fabricators . | . . . . Repair Stations 2 | . . . 2 Recycling Units 11 | . 8 . 3 Scanalyzers 2 | . . . 2 Garrison Access . | . . . . Terminal Hacks 13 | . 8 . 5 Robot Analysis 2 | . 1 . 1 Prototype ID Bank 4 | . 2 . 2 Locate Traps 3 | . 2 . 1 Hauler Manifests 2 | . 1 . 1 Zone Layout 2 | . 2 . . Fabricator Hacks . | . . . . Repair Station Hacks 2 | . . . 2 Scan Component 1 | . . . 1 Repair 1 | . . . 1 Recycling Unit Hacks 3 | . 1 . 2 Retrieve Components 3 | . 1 . 2 Scanalyzer 2 | . . . 2 Insert Component 1 | . . . 1 Analyze 1 | . . . 1 Garrison Access Hacks . | . . . . Unauthorized Hacks 13 | . 4 . 9 Terminals 11 | . 2 . 9 Assimilate 1 | . . . 1 Botnet 7 | . 1 . 6 Disrupt 1 | . . . 1 Operators 2 | . 1 . 1 Fabricators . | . . . . Repair Stations . | . . . . Recycling Units 2 | . 2 . . Tunnel 2 | . 2 . . Scanalyzers . | . . . . Garrison Access . | . . . . Data Cores Recovered . | . . . . Used . | . . . . Hacking Detections 18 | . 8 . 10 Full Trace Events 4 | . 2 . 2 Feedback Events . | . . . . Feedback Blocked . | . . . . Robot Schematics Acquired . | . . . . Robots Built . | . . . . Authchips . | . . . . Time . | . . . . Total Robot Build Rating . | . . . . Part Schematics Acquired 1 | . . . 1 Parts Built . | . . . . Authchips . | . . . . Time . | . . . . Total Part Build Rating . | . . . . Parts Repaired 1 | . . . 1 Time 26 | . . . 26 Parts Recycled . | . . . . Recycled Matter . | . . . . Retrieved Matter . | . . . . Retrieved Components 20 | . . . 20 Parts Scanalyzed 1 | . . . 1 Part Schematics Acquired 1 | . . . 1 Parts Damaged . | . . . . Bothacking | -11 -10 -10 -9 ------------ Run | Yrd Mat Min Mat Used RIF Installer . | . . . . Robots Hacked . | . . . . Non-combat . | . . . . Combat . | . . . . Robot Hacks Applied . | . . . . Relay Couplers Released . | . . . . Fabnet Peak Effective % . | . . . . Robots Rewired . | . . . . Allies Hacked . | . . . . Hacks Repelled . | . . . . Allies | -11 -10 -10 -9 -------- Run | Yrd Mat Min Mat Total Allies 1 | . . . 1 Largest Group 1 | . . . 1 Highest-Rated Group 10 | . . . 10 Highest-Rated Ally 10 | . . . 10 Total Orders . | . . . . Ally Attacks . | . . . . Total Damage . | . . . . Kills . | . . . . Allies Corrupted . | . . . . Allies Melted . | . . . . Intel | -11 -10 -10 -9 ------- Run | Yrd Mat Min Mat Robot Analysis Total 2 | . 1 . 1 Derelict Logs Recovered 1 | . . 1 . Drone Launches . | . . . . Drone Recoveries . | . . . . Exploration | -11 -10 -10 -9 ------------- Run | Yrd Mat Min Mat Turns Passed 6289 | 152 1405 1273 3459 Spaces Moved 3072 | 43 578 495 1956 Core 21 | 8 . . 13 Treads 2313 | 35 578 495 1205 Legs . | . . . . Wheels . | . . . . Hover . | . . . . Flight 738 | . . . 738 Fastest Speed 32 | 50 160 240 32 Average Speed 162 | 153 207 240 129 Slowest Speed 400 | 200 240 240 400 Overloaded Moves . | . . . . Propulsion Burnouts . | . . . . Robots Hopped 5 | . . . 5 Cave-ins Triggered . | . . . . Exploration Rate (%) 69 | 5 89 94 89 Regions Visited 3 Branch Regions 1 Pre-discovered Areas 2 | . 2 . . Known Exits Taken . | . . . . Unknown Exits Taken 3 | 1 1 1 . Scrap Searched 3 | . . 3 . Spaces Dug . | . . . . Terrain Destroyed 69 | . 6 . 63 Melee . | . . . . Projectile 42 | . . . 42 AOE 27 | . 6 . 21 Terrain Rammed . | . . . . Walls Destroyed . | . . . . Machines Disabled . | . . . . Actions | -11 -10 -10 -9 --------- Run | Yrd Mat Min Mat Total 3990 | 124 703 564 2599 Wait 569 | 68 65 55 381 Move 3059 | 42 577 494 1946 Hop 5 | . . . 5 Pick Up 26 | 1 4 3 18 Fast Attach 42 | 7 7 . 28 Attach 17 | 1 . . 16 Detach 5 | . . . 5 Swap 17 | . 4 5 8 Drop 23 | 2 6 . 15 Fire 211 | 3 40 7 161 Melee . | . . . . Ram . | . . . . Kick . | . . . . Crush 16 | . . . 16 Escape Stasis . | . . . . Rewire . | . . . . Trap . | . . . . Miscellaneous . | . . . . Route ------- -11/Scrapyard -10/Materials (discovered 5 exits: *Mat x3 / [*Min] / [*Sub]) -10/Mines (discovered 2 exits: *Mat x2) -9/Materials (discovered 4 exits: [*Mat x3] / *Min) History --------- Turn | Location | Event 13 | -11/Scrapyard | Discovered new exit (range 16) 153 | -11/Scrapyard | Entered Materials 305 | -10/Materials | Build established: Mutant 315 | -10/Materials | Discovered new exit (range 16) 775 | -10/Materials | Discovered new exit (range 16) 962 | -10/Materials | Discovered new exit (range 16) 1199 | -10/Materials | Discovered new exit (range 14) 1335 | -10/Materials | Discovered new exit (range 6) 1558 | -10/Materials | Entered Mines 1569 | -10/Mines | Assembled infested the area 1574 | -10/Mines | Assisted by a Guerilla fighting off Assembled 1605 | -10/Mines | Met a Derelict bent on vengeance 1847 | -10/Mines | Discovered new exit (range 7) 1974 | -10/Mines | Discovered new exit (range 7) 2185 | -10/Mines | Learned 4 Materials zone layouts 2552 | -10/Mines | A weapon hastily lodged in a ceiling crevice suddenly fell to the ground 2831 | -10/Mines | Entered Materials 2831 | -9/Materials | Evolved 2 slots: Propulsion x1, Utility x1 2832 | -9/Materials | Identified exit to Mines 3424 | -9/Materials | Discovered new exit (range 9) 3474 | -9/Materials | Repaired Lgt. Armor Plating 3689 | -9/Materials | Build established: Scavenger-Mutant 4355 | -9/Materials | Lost 3 parts (3n) 4390 | -9/Materials | Build established: Mutant 4858 | -9/Materials | Discovered new exit (range 14) 5360 | -9/Materials | Core integrity fell below 50% 5447 | -9/Materials | Discovered new exit (range 6) 5522 | -9/Materials | Core integrity fell below 20% 5542 | -9/Materials | Lost 3 parts (1p1n1w) 6031 | -9/Materials | First assault squad dispatched 6055 | -9/Materials | Build established: Scavenger-Mutant 6290 | -9/Materials | Destroyed by Y-45 Defender with Heavy Assault Rifle Last Messages --------------- Connecting with Recycling Unit... >>Retrieve(Components) Retrieving 10 components... Sensor Array Imp. Assault Rifle Wheel Lgt. Ion Engine Aluminum Leg Corrupted Lgt. Ion Engine Corrupted Sml. Laser Corrupted Aluminum Leg Hover Unit Faulty Imp. Flight Unit Acquired Faulty Imp. Flight Unit. Connecting with Terminal... >>Trojan(Botnet) Trojan loaded successfully. Testing... Terminal linked with 5 systems. Awaiting botnet instructions. Map ----- +----------------------------------------------------+ | ??####??# #????????## ### ### | | ????????# #????????## ### ### | | ????????# #????????## ### ### | | ?????#### #????????############+### | | ?????# #????????##### ## | | ?????# #???????????## # | | ?????# #???????????## """ """ # | | ?????# #???????????## """ """ + | | ?????# #???????????## """ """ # | | ?????# +???????????## """ " # | | ?????# ######## #????????????# """ "" ## | | ?????# #??????# #????????????# ## | | ????##+#####??# #????????????############ | | ????# !!#??# ##+#??############ ###### | | ????# !!#??# #? # # | | ????# ! #??# #? [# "T" """ """ # | | ????# % #??# # """ # """ """ # | | ????# #??# # """ #]]! """ """ + | | ????# #??# + """ #]!! # | | ????####+###??#### # #]! # | | ?????# #????## ###################### | | ?????# ###### #???? ############ | | ?????# T #???? T #?????????## | | ?????# ###### #???? #?????????## | | ?????# #????## ##???? #?????????## | | ??######+#######?#@#???????????????????## | | ??# [=* #?# #???????????????????## | | ??#* """[=="" #?# #???????????????????## | | ??# """ !Y" #?# #???????????????????## | | ??# """= *"" #?# #???????????????????#### | | ??# #?# #???????????????????#### | | ??##############?# ??????????????????????? | | ?????????????????# ??????????????????????? | | ?????????????????# ??????????????????????? | | ?????????????????# ??????????????????????? | | ?????????????????# ??????????????????????? | | ?????????????????? ??????????????????????? | | ?????????????????? ?????????????????????? | | ?????????????????? #?????????????????????? | | ?????????????????? #?????????????????????? | | ?????????????????? ??????????????????????? | | ?????????????????? ??????????????????????? | | ?????????????????? ??????????????????????? | | ??????????????????????????????????????????? | | ??????????????????????????????????????????? | | ??????????????????????????????????????????? | | ??????????????????????????????????????????? | | ??????????????????????????????????????????? | | ??????????????????????????????????????????? | | ??????????????????????????????????????????? | +----------------------------------------------------+ Best States ------------- Heat Dissipation 28 Energy Generation 14 Energy Capacity 280 Matter Stores 300 Matter Capacity 300 Sight Range 16 Robot Scan Range 14 Terrain Scan Density 10 Additional Mass Support 9 Armor Coverage 225 Utility Shielding 33 Evasion (%) 63 Recoil Reduction 3 Offensive Hacking 10 Item Schematics ----------------- Bore Cannon | -9/Materials | Scanalyzed Robot Schematics ------------------ None Fabricated ------------ Nothing Alien Tech Used ----------------- None Achievements -------------- Let's See Who's Tougher Challenges ------------ None Game ------ Seed TripodSubdwellerDiverter Manual? 0 Play Time 00:57:00 Cumulative 175.6 hours Start 2024.05.12 @ 15:25:22 End 2024.05.12 @ 16:22:31 Sessions 1 Manual Loads 0 Difficulty Rogue Special Mode None Game No. 11 Rogue 1 Adventurer 5 Explorer 5 Win Type - Total 11 Types 2/2/1/5/0/0/0/0/1 Lore% 58 Gallery% 63 Achievement% 64 Wizard Run 0 Options --------- Layout 1 ASCII 0 Keyboard 0 Movement Mouse Keybinds 0 Fullscreen 1 Font 24/Smallcaps Map View 50x35 Zoom Use 0% Tactical HUD 0 Map Filters NONE Filters NONE Steam 1 RUN: 6de184c8-b738-46fc-8757-4baaa49a2760